fUST/lending_fUST_20250812
["ID","MTS","AMOUNT","RATE_DAILY","PERIOD"]
[378703782,1754965908010,460.0,0.0001875,2]
[378703783,1754965908837,257.11490662,0.0001875,2]
[378703784,1754965909394,529.24,0.0001875,2]
[378703785,1754965914722,673.46,0.0001875,2]
[378703786,1754965915010,2507.0,0.0001875,2]
[378703787,1754965916907,172.02025305,0.0001875,2]
[378703788,1754965918922,460.0,0.0001875,2]
[378703789,1754965919032,460.0,0.0001875,2]
[378703790,1754965919878,2366.89,0.0001875,2]
[378703791,1754965922453,300.0,0.0001875,2]
[378703792,1754965922746,2780.82,0.0001875,2]
[378703793,1754965923799,501.85,0.0001875,2]
[378703794,1754965924482,1756.37,0.0001875,2]
[378703795,1754965928239,460.0,0.0001875,2]
[378703796,1754965930341,627.14,0.0001875,2]
[378703797,1754965933435,833.16,0.0001875,2]
[378703798,1754965937609,235.83510699,0.0001875,2]
[378703799,1754965937923,460.0,0.0001875,2]
[378703800,1754965938413,460.0,0.0001875,2]
[378703801,1754965938832,704.69,0.0001875,2]
[378703802,1754965941866,498.10623243,0.0001875,2]
[378703803,1754965941991,2921.91,0.0001875,2]
[378703804,1754965942547,460.0,0.0001875,2]
[378703805,1754965944015,460.0,0.0001875,2]
[378703806,1754965944373,460.0,0.0001875,2]
[378703807,1754965944511,460.0,0.0001875,2]
[378703808,1754965945837,460.0,0.0001875,2]
[378703809,1754965950880,460.0,0.0001875,2]
[378703810,1754965950937,460.0,0.0001875,2]
[378703811,1754965951018,2402.54,0.0001875,2]
[378703812,1754965951103,460.0,0.0001875,2]
[378703813,1754965953550,460.0,0.0001875,2]
[378703814,1754965956713,674.76,0.0001875,2]
[378703815,1754965958889,460.0,0.0001875,2]
[378703816,1754965959698,460.0,0.0001875,2]
[378703817,1754965959954,571.81,0.0001875,2]
[378703818,1754965962029,540.71,0.0001875,2]
[378703820,1754965965510,460.0,0.0001875,2]
[378703821,1754965967286,460.0,0.0001875,2]
[378703822,1754965970559,1536.4,0.0001875,2]
[378703823,1754965973723,960.25,0.0001875,2]
[378703824,1754965974281,460.0,0.0001875,2]
[378703825,1754965975936,2252.94,0.0001875,2]
[378703826,1754965979488,460.0,0.0001875,2]
[378703827,1754965979581,477.63937071,0.0001875,2]
[378703828,1754965982928,851.11,0.0001875,2]
[378703829,1754965983215,300.0,0.0001875,2]
[378703830,1754965986217,9282.15,0.0001875,2]
[378703831,1754965987114,590.65,0.0001875,2]
[378703832,1754965988069,460.0,0.0001875,2]
[378703833,1754965988831,1129.69,0.0001875,2]
[378703834,1754965991702,460.0,0.0001875,2]
[378703835,1754965994472,516.91,0.0001875,2]
[378703836,1754965997165,1351.05,0.0001875,2]
[378703837,1754966008478,460.0,0.0001875,2]
[378703838,1754966009321,460.0,0.0001875,2]
[378703839,1754966010211,481.7,0.0001875,2]
[378703840,1754966015016,1015.55,0.0001875,2]
[378703841,1754966017322,460.0,0.0001875,2]
[378703842,1754966018239,460.0,0.0001875,2]
[378703843,1754966021168,2800.17,0.0001875,2]
[378703844,1754966025313,460.0,0.0001875,2]
[378703845,1754966025736,460.0,0.0001875,2]
[378703846,1754966027600,468.84,0.0001875,2]
[378703847,1754966031604,460.0,0.0001875,2]
[378703848,1754966036600,462.30502811,0.0001875,2]
[378703849,1754966036632,775.69,0.0001875,2]
[378703850,1754966037967,894.77,0.0001875,2]
[378703851,1754966038817,460.0,0.0001875,2]
[378703852,1754966042583,1487.16,0.0001875,2]
[378703853,1754966042866,300.0,0.0001875,2]
[378703854,1754966043493,8895.39,0.0001875,2]
[378703855,1754966047030,460.0,0.0001875,2]
[378703856,1754966050593,655.71,0.0001875,2]
[378703857,1754966055338,460.0,0.0001875,2]
[378703858,1754966055995,2822.15,0.0001875,2]
[378703859,1754966056216,460.0,0.0001875,2]
[378703860,1754966059295,648.54,0.0001875,2]
[378703861,1754966068067,460.0,0.0001875,2]
[378703862,1754966069056,460.0,0.0001875,2]
[378703863,1754966069375,460.0,0.0001875,2]
[378703864,1754966071907,8524.75,0.0001875,2]
[378703865,1754966071941,620.15,0.0001875,2]
[378703866,1754966071978,460.0,0.0001875,2]
[378703867,1754966072848,581.28,0.0001875,2]
[378703868,1754966075321,331.8372785,0.0001875,2]
[378703869,1754966077373,460.0,0.0001875,2]
[378703870,1754966078402,588.4120536,0.0001875,2]
[378703871,1754966080255,460.0,0.0001875,2]
[378703872,1754966080808,461.31287159,0.0001875,2]
[378703873,1754966085461,727.9,0.0001875,2]
[378703874,1754966086029,2352.37,0.0001875,2]
[378703875,1754966086622,719.14,0.0001875,2]
[378703876,1754966087130,2940.26,0.0001875,2]
[378703877,1754966095284,238.84886767,0.0001875,2]
[378703878,1754966097310,460.0,0.0001875,2]
[378703879,1754966099407,460.0,0.0001875,2]
[378703880,1754966099487,792.94,0.0001875,2]
[378703881,1754966100199,946.8,0.0001875,2]
[378703882,1754966102567,300.0,0.0001875,2]
[378703883,1754966103270,2387.83,0.0001875,2]
[378703884,1754966108227,894.76,0.0001875,2]
[378703885,1754966110968,468.95,0.0001875,2]
[378703886,1754966111184,594.31,0.0001875,2]
[378703887,1754966116724,587.87,0.0001875,2]
[378703888,1754966117362,460.0,0.0001875,2]
[378703898,1754966123435,460.0,0.0001875,2]
[378703899,1754966123777,645.4,0.0001875,2]
[378703900,1754966125816,460.0,0.0001875,2]
[378703901,1754966127522,1880.79,0.0001875,2]
[378703902,1754966131146,460.0,0.0001875,2]
[378703903,1754966132216,2288.34,0.0001875,2]
[378703904,1754966133956,1683.19,0.0001875,2]
[378703905,1754966142571,798.45,0.0001875,2]
[378703906,1754966142768,1410.87,0.0001875,2]
[378703907,1754966145228,1255.03,0.0001875,2]
[378703908,1754966152750,1000.0,0.000227,30]
[378703909,1754966153020,460.0,0.0001875,2]
[378703910,1754966159775,739.14,0.0001875,2]
[378703911,1754966163448,2817.75,0.0001875,2]
[378703912,1754966163618,300.0,0.0001875,2]
[378703913,1754966165957,1802.43,0.0001875,2]
[378703914,1754966168249,424.98958183,0.0001875,2]
[378703915,1754966169279,323.696401,0.00013699,2]
[378703916,1754966172553,460.0,0.0001875,2]
[378703917,1754966174055,515.36,0.0001875,2]
[378703919,1754966178063,920.24,0.0001875,2]
[378703920,1754966179037,987.91,0.0001875,2]
[378703921,1754966180407,460.0,0.0001875,2]
[378703922,1754966187536,460.0,0.0001875,2]
[378703923,1754966191613,1082.62,0.0001875,2]
[378703924,1754966194461,460.0,0.0001875,2]
[378703925,1754966194610,325.48722055,0.0001875,2]
[378703926,1754966195045,2268.27,0.0001875,2]
[378703927,1754966195838,1045.26,0.0001875,2]
[378703928,1754966196540,2700.35,0.0001875,2]
[378703930,1754966198915,705.0,0.0001875,2]
[378703931,1754966200074,1294.75,0.0001875,2]
[378703932,1754966200142,529.56,0.0001875,2]
[378703933,1754966205450,601.01,0.0001875,2]
[378703934,1754966205984,460.0,0.0001875,2]
[378703935,1754966215878,460.0,0.0001875,2]
[378703936,1754966217438,460.0,0.0001875,2]
[378703937,1754966221991,981.78,0.0001875,2]
[378703938,1754966222876,300.0,0.0001875,2]
[378703939,1754966225630,460.0,0.0001875,2]
[378703940,1754966230577,460.0,0.0001875,2]
[378703941,1754966230837,646.65,0.0001875,2]
[378703942,1754966232230,460.0,0.0001875,2]
[378703943,1754966236365,1878.81,0.0001875,2]
[378703947,1754966249620,2159.07,0.0001875,2]
[378703948,1754966250798,628.39,0.0001875,2]
[378703949,1754966250836,460.0,0.0001875,2]
[378703950,1754966258077,460.0,0.0001875,2]
[378703951,1754966259982,621.52,0.0001875,2]
[378703952,1754966262235,1667.61,0.0001875,2]
[378703953,1754966267495,940.88,0.0001875,2]
[378703954,1754966267691,460.0,0.0001875,2]
[378703955,1754966269218,506.77,0.0001875,2]
[378703956,1754966269542,460.0,0.0001875,2]
[378703957,1754966269608,460.0,0.0001875,2]
[378703958,1754966271334,460.0,0.0001875,2]
[378703959,1754966274533,714.68,0.0001875,2]
[378703960,1754966275852,460.31,0.0001875,2]
[378703961,1754966281137,460.0,0.0001875,2]
[378703962,1754966283025,300.0,0.0001875,2]
[378703963,1754966285641,689.18,0.0001875,2]
[378703964,1754966286865,973.23,0.0001875,2]
[378703965,1754966287977,460.0,0.0001875,2]
[378703966,1754966288357,5021.92232709,0.00030136,120]
[378703967,1754966293907,1049.48,0.0001875,2]
[378703968,1754966296406,460.0,0.0001875,2]
[378703969,1754966296757,460.0,0.0001875,2]
[378703970,1754966300183,579.99,0.0001875,2]
[378703971,1754966304515,460.0,0.0001875,2]
[378703972,1754966306794,631.85,0.0001875,2]
[378703973,1754966307461,1800.52,0.0001875,2]
[378703974,1754966307772,563.38,0.0001875,2]
[378703975,1754966311464,1021.13,0.0001875,2]
[378703976,1754966311650,485.65,0.0001875,2]
[378703977,1754966320854,460.0,0.0001875,2]
[378703978,1754966321118,460.0,0.0001875,2]
[378703979,1754966322503,782.1,0.0001875,2]
[378703980,1754966323526,460.0,0.0001875,2]
[378703981,1754966326848,1352.09,0.0001875,2]
[378703982,1754966328533,460.0,0.0001875,2]
[378703983,1754966329753,1598.13,0.0001875,2]
[378703984,1754966334125,479.84,0.0001875,2]
[378703985,1754966335395,460.0,0.0001875,2]
[378703986,1754966341849,708.35,0.0001875,2]
[378703987,1754966342117,1725.5,0.0001875,2]
[378703988,1754966343084,300.0,0.0001875,2]
[378703989,1754966345313,478.45,0.0001875,2]
[378703990,1754966346833,460.0,0.0001875,2]
[378703991,1754966361241,500.0,0.0001875,2]
[378703992,1754966361817,500.0,0.0001875,2]
[378703993,1754966362623,1005.75,0.0001875,2]
[378703994,1754966366651,1531.54,0.0001875,2]
[378703995,1754966366698,2664.95,0.0001875,2]
[378703996,1754966371460,497.03,0.0001875,2]
[378703997,1754966378256,2173.76,0.0001875,2]
[378703998,1754966387250,1184.84,0.0001875,2]
[378703999,1754966388553,575.97,0.0001875,2]
[378704000,1754966391843,168.0,0.00018554,2]
[378704001,1754966395431,460.0,0.0001875,2]
[378704002,1754966396064,168.0,0.0001849,2]
[378704003,1754966400540,963.85,0.0001875,2]
[378704004,1754966404660,460.0,0.0001875,2]
[378704005,1754966408348,448.96377068,0.0001875,2]
[378704006,1754966408881,617.53504953,0.0001875,2]
[378704007,1754966409562,2481.0,0.00018554,2]
[378704008,1754966414370,619.7,0.0001875,2]
[378704009,1754966416283,460.0,0.0001875,2]
[378704010,1754966421705,478.09860917,0.0001875,2]
[378704011,1754966424117,460.0,0.0001875,2]
[378704012,1754966426627,819.54,0.0001875,2]
[378704013,1754966428027,460.0,0.0001875,2]
[378704014,1754966433028,2069.11,0.0001875,2]
[378704015,1754966437437,460.0,0.0001875,2]
[378704016,1754966439868,460.0,0.0001875,2]
[378704017,1754966441416,460.0,0.0001875,2]
[378704018,1754966444756,460.65,0.0001875,2]
[378704019,1754966449732,460.0,0.0001875,2]
[378704020,1754966451251,460.0,0.0001875,2]
[378704021,1754966453666,468.82314484,0.0001875,2]
[378704022,1754966454949,460.0,0.0001875,2]
[378704023,1754966455078,1081.72,0.0001875,2]
[378704024,1754966457336,2553.91,0.0001875,2]
[378704025,1754966463731,2683.49,0.0001875,2]
[378704026,1754966464923,401.33683861,0.0001875,2]
[378704027,1754966469258,460.0,0.0001875,2]
[378704028,1754966470695,932.68,0.0001875,2]
[378704029,1754966477761,465.30549789,0.0001875,2]
[378704030,1754966478643,460.0,0.0001875,2]
[378704031,1754966478808,465.96,0.0001875,2]
[378704032,1754966480759,2447.5,0.0001875,2]
[378704033,1754966488489,460.0,0.0001875,2]
[378704034,1754966501910,460.0,0.0001875,2]
[378704035,1754966517690,267.5950948,0.0001875,2]
[378704036,1754966519391,675.33,0.0001875,2]
[378704037,1754966523361,460.0,0.0001875,2]
[378704038,1754966527151,460.0,0.0001875,2]
[378704039,1754966529343,460.0,0.0001875,2]
[378704040,1754966531583,460.0,0.0001875,2]
[378704041,1754966535981,460.0,0.0001875,2]
[378704042,1754966542306,460.0,0.0001875,2]
[378704043,1754966543103,518.18,0.0001875,2]
[378704044,1754966546758,452.16884765,0.0001875,2]
[378704045,1754966547705,460.0,0.0001875,2]
[378704046,1754966548613,2571.68,0.0001875,2]
[378704047,1754966552059,460.0,0.0001875,2]
[378704048,1754966560518,460.0,0.0001875,2]
[378704049,1754966569363,460.0,0.0001875,2]
[378704050,1754966569498,460.0,0.0001875,2]
[378704051,1754966573733,460.0,0.0001875,2]
[378704052,1754966575181,2464.53,0.0001875,2]
[378704053,1754966575378,495.37,0.0001875,2]
[378704054,1754966579610,460.0,0.0001875,2]
[378704055,1754966585477,460.0,0.0001875,2]
[378704056,1754966593037,460.0,0.0001875,2]
[378704057,1754966596698,460.0,0.0001875,2]
[378704058,1754966598574,460.0,0.0001875,2]
[378704059,1754966598677,460.0,0.0001875,2]
[378704060,1754966609446,575.72877833,0.0001875,2]
[378704061,1754966611184,429.40476104,0.0001875,2]
[378704062,1754966611948,744.14,0.0001875,2]
[378704063,1754966618048,460.0,0.0001875,2]
[378704064,1754966619337,460.0,0.0001875,2]
[378704065,1754966622265,1425.19,0.0001875,2]
[378704066,1754966633515,460.0,0.0001875,2]
[378704067,1754966637670,8169.55,0.0001875,2]
[378704068,1754966639485,7488.76,0.0001875,2]
[378704070,1754966644684,570.72,0.0001875,2]
[378704071,1754966647340,460.0,0.0001875,2]
[378704072,1754966648033,460.0,0.0001875,2]
[378704073,1754966657968,460.0,0.0001875,2]
[378704074,1754966668114,460.0,0.0001875,2]
[378704075,1754966672910,460.0,0.0001875,2]
[378704076,1754966675670,460.0,0.0001875,2]
[378704077,1754966684944,2192.99,0.0001875,2]
[378704078,1754966694787,11993.6480305,0.00017988,2]
[378704079,1754966717013,2587.83,0.0001875,2]
[378704080,1754966717054,460.0,0.0001875,2]
[378704081,1754966718130,2372.18,0.0001875,2]
[378704082,1754966740600,466.1225174,0.0001875,2]
[378704083,1754966745039,173.179935,0.0002254,30]
[378704084,1754966748686,460.0,0.0001875,2]
[378704087,1754966769339,272.2189119,0.0001875,2]
[378704088,1754966782508,460.0,0.0001875,2]
[378704089,1754966787868,1653.61,0.0001875,2]
[378704090,1754966795071,1515.81,0.0001875,2]
[378704091,1754966799632,1467.73,0.0001875,2]
[378704092,1754966802824,173.179935,0.00023,30]
[378704093,1754966803724,1345.42,0.0001875,2]
[378704094,1754966820931,923.69,0.0001875,2]
[378704095,1754966831722,846.71,0.0001875,2]
[378704096,1754966842098,-150.92772289,0.00018755,2]
[378704097,1754966842119,-1000.0,0.000188,2]
[378704098,1754966842139,-2481.0,0.0001885,2]
[378704099,1754966842160,-168.0,0.00018897,2]
[378704100,1754966842180,-150.0,0.000189,2]
[378704101,1754966842200,-317.37908552,0.00018922,2]
[378704102,1754966842221,-168.0,0.00018986,2]
[378704103,1754966842242,-168.0,0.00019001,2]
[378704104,1754966842262,-305.0,0.00019008,2]
[378704105,1754966842283,-300.0,0.00019013,2]
[378704106,1754966842303,-1153.0,0.00019013,2]
[378704107,1754966842323,-475.36553276,0.00019015,2]
[378704108,1754966842343,-168.0,0.00019017,2]
[378704109,1754966842363,-300.0,0.0001902,2]
[378704110,1754966842384,-460.0,0.00019021,2]
[378704111,1754966842417,-460.0,0.00019021,2]
[378704112,1754966842438,-460.0,0.00019021,2]
[378704113,1754966842460,-1472.38,0.00019021,2]
[378704114,1754966842481,-460.0,0.00019021,2]
[378704115,1754966842502,-857.49,0.00019021,2]
[378704116,1754966842523,-460.0,0.00019021,2]
[378704117,1754966842548,-1352.28,0.00019021,2]
[378704118,1754966842568,-480.94,0.00019021,2]
[378704119,1754966842590,-749.51,0.00019021,2]
[378704120,1754966842614,-557.06,0.00019021,2]
[378704121,1754966842635,-460.0,0.00019021,2]
[378704122,1754966842656,-460.0,0.00019021,2]
[378704123,1754966842677,-547.99,0.00019021,2]
[378704124,1754966842700,-2254.35,0.00019021,2]
[378704125,1754966842720,-460.0,0.00019022,2]
[378704126,1754966842741,-460.0,0.00019022,2]
[378704127,1754966842762,-460.0,0.00019022,2]
[378704128,1754966842782,-460.0,0.00019022,2]
[378704129,1754966842803,-656.84,0.00019022,2]
[378704130,1754966842823,-507.19,0.00019022,2]
[378704131,1754966842843,-490.62758082,0.00019022,2]
[378704132,1754966842863,-465.78032648,0.00019022,2]
[378704133,1754966842883,-460.0,0.00019022,2]
[378704134,1754966842903,-460.0,0.00019022,2]
[378704135,1754966842924,-460.0,0.00019022,2]
[378704136,1754966842945,-460.0,0.00019022,2]
[378704137,1754966842965,-815.64,0.00019022,2]
[378704138,1754966842985,-566.04,0.00019022,2]
[378704139,1754966843005,-657.01,0.00019022,2]
[378704140,1754966843024,-907.35,0.00019022,2]
[378704141,1754966843044,-461.63,0.00019022,2]
[378704142,1754966843064,-544.37254634,0.00019022,2]
[378704143,1754966843084,-618.51,0.00019022,2]
[378704144,1754966843104,-460.0,0.00019022,2]
[378704145,1754966843125,-288.39674452,0.00019022,2]
[378704146,1754966843145,-460.0,0.00019022,2]
[378704147,1754966843166,-1613.06,0.00019022,2]
[378704148,1754966843185,-743.37,0.00019022,2]
[378704149,1754966843206,-765.18,0.00019022,2]
[378704150,1754966843227,-460.0,0.00019022,2]
[378704151,1754966843249,-460.0,0.00019022,2]
[378704152,1754966843268,-460.0,0.00019022,2]
[378704153,1754966843289,-460.0,0.00019022,2]
[378704154,1754966843311,-881.9,0.00019022,2]
[378704155,1754966843335,-697.57,0.00019022,2]
[378704156,1754966843357,-1037.51,0.00019022,2]
[378704157,1754966843378,-759.9,0.00019022,2]
[378704158,1754966843400,-1240.81,0.00019022,2]
[378704159,1754966843420,-460.0,0.00019022,2]
[378704160,1754966843440,-460.0,0.00019022,2]
[378704161,1754966843460,-460.0,0.00019022,2]
[378704162,1754966843481,-460.0,0.00019022,2]
[378704163,1754966843503,-460.0,0.00019022,2]
[378704164,1754966843524,-460.0,0.00019022,2]
[378704165,1754966843560,-492.63,0.00019022,2]
[378704166,1754966843582,-1202.74,0.00019022,2]
[378704167,1754966843603,-460.0,0.00019022,2]
[378704168,1754966843626,-602.21,0.00019022,2]
[378704169,1754966843653,-595.62,0.00019022,2]
[378704170,1754966843675,-2302.43,0.00019022,2]
[378704171,1754966843698,-493.89,0.00019022,2]
[378704172,1754966843719,-460.0,0.00019022,2]
[378704173,1754966843740,-460.0,0.00019022,2]
[378704174,1754966843762,-1001.71,0.00019022,2]
[378704175,1754966843784,-660.46,0.00019022,2]
[378704176,1754966843805,-460.0,0.00019022,2]
[378704177,1754966843826,-857.48,0.00019022,2]
[378704178,1754966843848,-460.0,0.00019022,2]
[378704179,1754966843872,-3354.65,0.00019022,2]
[378704180,1754966843892,-460.0,0.00019022,2]
[378704181,1754966843914,-460.0,0.00019022,2]
[378704182,1754966843934,-460.0,0.00019022,2]
[378704183,1754966843956,-1295.75,0.00019022,2]
[378704184,1754966843977,-678.83,0.00019023,2]
[378704185,1754966843998,-2083.19,0.00019023,2]
[378704186,1754966844019,-551.97,0.00019023,2]
[378704187,1754966844043,-593.88,0.00019023,2]
[378704188,1754966844068,-1982.9,0.00019023,2]
[378704189,1754966844092,-901.67,0.00019023,2]
[378704190,1754966844113,-569.55,0.00019023,2]
[378704191,1754966844134,-893.82,0.00019023,2]
[378704192,1754966844154,-465.42,0.00019023,2]
[378704193,1754966844175,-1727.33,0.00019023,2]
[378704194,1754966844195,-460.0,0.00019023,2]
[378704195,1754966844215,-460.0,0.00019024,2]
[378704196,1754966844235,-151.0,0.00019024,2]
[378704197,1754966844256,-203.56603208,0.00019024,2]
[378704198,1754966844495,-460.0,0.00019024,2]
[378704199,1754966844517,-151.0,0.00019024,2]
[378704200,1754966844541,-460.0,0.00019024,2]
[378704201,1754966844560,-151.52284439,0.00019024,2]
[378704202,1754966844580,-151.0,0.00019024,2]
[378704203,1754966844600,-151.0,0.00019024,2]
[378704204,1754966844623,-151.93322779,0.00019024,2]
[378704205,1754966844643,-151.0,0.00019024,2]
[378704206,1754966844663,-152.3627036,0.00019024,2]
[378704207,1754966844688,-460.0,0.00019024,2]
[378704208,1754966844709,-987.91,0.00019024,2]
[378704209,1754966844728,-460.0,0.00019024,2]
[378704210,1754966844749,-529.56,0.00019024,2]
[378704211,1754966844771,-460.0,0.00019024,2]
[378704212,1754966844792,-460.0,0.00019024,2]
[378704213,1754966844812,-460.0,0.00019024,2]
[378704214,1754966844833,-460.0,0.00019024,2]
[378704215,1754966844854,-460.0,0.00019024,2]
[378704216,1754966844875,-714.68,0.00019024,2]
[378704217,1754966844895,-460.31,0.00019024,2]
[378704218,1754966844917,-460.0,0.00019024,2]
[378704219,1754966844940,-579.99,0.00019024,2]
[378704220,1754966844963,-631.85,0.00019024,2]
[378704221,1754966844985,-1021.13,0.00019024,2]
[378704222,1754966845005,-460.0,0.00019024,2]
[378704223,1754966845027,-460.0,0.00019024,2]
[378704224,1754966845050,-460.0,0.00019024,2]
[378704225,1754966845074,-479.84,0.00019024,2]
[378704226,1754966845096,-478.45,0.00019024,2]
[378704227,1754966845116,-460.0,0.00019024,2]
[378704228,1754966845137,-497.03,0.00019024,2]
[378704229,1754966845157,-1184.84,0.00019024,2]
[378704230,1754966845177,-460.0,0.00019024,2]
[378704231,1754966845196,-460.0,0.00019024,2]
[378704232,1754966845216,-460.0,0.00019024,2]
[378704233,1754966845236,-819.54,0.00019024,2]
[378704234,1754966845257,-460.0,0.00019024,2]
[378704235,1754966845277,-432.22338106,0.00019024,2]
[378704236,1754966845297,-460.0,0.00019024,2]
[378704237,1754966845319,-460.0,0.00019024,2]
[378704238,1754966845340,-460.65,0.00019024,2]
[378704239,1754966845360,-404.7420087,0.00019024,2]
[378704240,1754966845381,-460.0,0.00019024,2]
[378704241,1754966845402,-1081.72,0.00019024,2]
[378704242,1754966845423,-460.0,0.00019024,2]
[378704243,1754966845444,-460.0,0.00019024,2]
[378704244,1754966845463,-460.0,0.00019024,2]
[378704245,1754966845484,-465.96,0.00019024,2]
[378704246,1754966845505,-2447.5,0.00019024,2]
[378704247,1754966845525,-460.0,0.00019024,2]
[378704248,1754966845549,-675.33,0.00019024,2]
[378704249,1754966845571,-460.0,0.00019024,2]
[378704250,1754966845593,-466.96211858,0.00019024,2]
[378704251,1754966845616,-460.0,0.00019024,2]
[378704252,1754966845637,-460.0,0.00019024,2]
[378704253,1754966845659,-460.0,0.00019024,2]
[378704254,1754966845679,-460.0,0.00019024,2]
[378704255,1754966845700,-518.18,0.00019024,2]
[378704256,1754966845721,-460.0,0.00019024,2]
[378704257,1754966845741,-460.0,0.00019024,2]
[378704258,1754966845762,-406.45329085,0.00019024,2]
[378704259,1754966845783,-460.0,0.00019024,2]
[378704260,1754966845804,-460.0,0.00019024,2]
[378704261,1754966845824,-460.0,0.00019024,2]
[378704262,1754966845845,-495.37,0.00019024,2]
[378704263,1754966845866,-2464.53,0.00019024,2]
[378704264,1754966845886,-460.0,0.00019024,2]
[378704265,1754966845905,-460.0,0.00019024,2]
[378704266,1754966845926,-460.0,0.00019024,2]
[378704267,1754966845945,-460.0,0.00019024,2]
[378704268,1754966845964,-334.96765042,0.00019024,2]
[378704269,1754966845986,-744.14,0.00019024,2]
[378704270,1754966846009,-460.0,0.00019024,2]
[378704271,1754966846031,-460.0,0.00019024,2]
[378704272,1754966846052,-1425.19,0.00019024,2]
[378704273,1754966846073,-460.0,0.00019024,2]
[378704274,1754966846095,-574.72893954,0.00019024,2]
[378704275,1754966862822,460.0,0.0001875,2]
[378704276,1754966876049,150.9277229,0.0001873,2]
[378704277,1754966879644,460.0,0.0001875,2]
[378704278,1754966882640,2243.54,0.0001875,2]
[378704279,1754966899656,2150.06,0.0001875,2]
[378704280,1754966951358,150.9277229,0.0001873,2]
[378704281,1754966960842,2259.15,0.0001875,2]
[378704282,1754966984004,2165.02,0.0001875,2]
[378704333,1754967032169,-277.70669983,0.00018924,2]
[378704336,1754967032179,-1765.55740046,0.00019014,2]
[378704340,1754967032190,-714.70369681,0.00019014,2]
[378704461,1754967039286,-5012.91890273,0.00019014,2]
[378704463,1754967039296,-2101.62,0.00019014,2]
[378704464,1754967039307,-300.0,0.0001902,2]
[378704465,1754967039317,-869.55,0.00019021,2]
[378704466,1754967039328,-592.74,0.00019021,2]
[378704467,1754967039337,-1545.85,0.00019021,2]
[378704468,1754967039347,-733.3,0.00019021,2]
[378704469,1754967039357,-460.0,0.00019021,2]
[378704470,1754967039367,-460.0,0.00019021,2]
[378704471,1754967039378,-460.0,0.00019021,2]
[378704472,1754967039389,-1411.03,0.00019021,2]
[378704473,1754967039399,-136.47191792,0.00019021,2]
[378704481,1754967043067,-323.52808208,0.00019021,2]
[378704482,1754967043283,-64.92191793,0.00019021,2]